[Event "Late-Titled-Tuesday-Blitz-August-29-2023"]
[Site "Chess.com"]
[Date "2023.08.29"]
[Round "2"]
[White "ErikRonka"]
[Black "ilushka"]
[Result "0-1"]
[WhiteElo "2493"]
[BlackElo "2366"]
[TimeControl "180+1"]
[EndTime "14:18:38 PDT"]
[Termination "ilushka won on time"]

1. e4 {[%clk 0:03:00.9]} 1... c5 {[%clk 0:03:00.2]} 2. Nf3 {[%clk 0:02:57.4]}
2... Nc6 {[%clk 0:03:00.2]} 3. d4 {[%clk 0:02:57.8]} 3... cxd4 {[%clk
0:03:01.1]} 4. Nxd4 {[%clk 0:02:58.4]} 4... Nf6 {[%clk 0:02:59.2]} 5. Nc3 {[%clk
0:02:58.8]} 5... e5 {[%clk 0:02:58.7]} 6. Ndb5 {[%clk 0:02:59.4]} 6... d6 {[%clk
0:02:59.1]} 7. Bg5 {[%clk 0:02:59.8]} 7... a6 {[%clk 0:02:59.5]} 8. Na3 {[%clk
0:03:00.3]} 8... Be6 {[%clk 0:02:59.8]} 9. Nc4 {[%clk 0:02:59.4]} 9... Rb8
{[%clk 0:03:00.3]} 10. Nd5 {[%clk 0:02:54.7]} 10... Bxd5 {[%clk 0:02:56.8]} 11.
exd5 {[%clk 0:02:55.5]} 11... Ne7 {[%clk 0:02:57.1]} 12. Bxf6 {[%clk 0:02:43.8]}
12... gxf6 {[%clk 0:02:58]} 13. Ne3 {[%clk 0:02:44.2]} 13... f5 {[%clk
0:02:54.7]} 14. g3 {[%clk 0:02:39.4]} 14... Qa5+ {[%clk 0:02:53.2]} 15. c3
{[%clk 0:02:38.2]} 15... Bh6 {[%clk 0:02:44.2]} 16. Bg2 {[%clk 0:02:33.6]} 16...
Bxe3 {[%clk 0:02:05.5]} 17. fxe3 {[%clk 0:02:34.5]} 17... e4 {[%clk 0:02:05.2]}
18. O-O {[%clk 0:02:32.4]} 18... Qxd5 {[%clk 0:02:04.3]} 19. Qe2 {[%clk
0:02:25.8]} 19... Qe6 {[%clk 0:01:58.5]} 20. Rf2 {[%clk 0:02:04.1]} 20... h5
{[%clk 0:01:54.3]} 21. b3 {[%clk 0:01:56.8]} 21... h4 {[%clk 0:01:52.1]} 22.
Raf1 {[%clk 0:01:33.6]} 22... hxg3 {[%clk 0:01:50.7]} 23. hxg3 {[%clk
0:01:34.5]} 23... Qe5 {[%clk 0:01:47]} 24. Rf4 {[%clk 0:01:23]} 24... Ng6 {[%clk
0:01:29.1]} 25. Rxf5 {[%clk 0:01:21.7]} 25... Qxg3 {[%clk 0:01:28.8]} 26. Qc4
{[%clk 0:01:04.2]} 26... Qxe3+ {[%clk 0:01:06.7]} 27. R5f2 {[%clk 0:00:49.6]}
27... Ne5 {[%clk 0:00:54.6]} 28. Qxe4 {[%clk 0:00:42.7]} 28... Qxe4 {[%clk
0:00:51.2]} 29. Bxe4 {[%clk 0:00:43.6]} 29... Ke7 {[%clk 0:00:49.3]} 30. Rg2
{[%clk 0:00:35.7]} 30... b5 {[%clk 0:00:46.9]} 31. Bd5 {[%clk 0:00:34.9]} 31...
Rbg8 {[%clk 0:00:43.6]} 32. Rd1 {[%clk 0:00:29.9]} 32... Rxg2+ {[%clk
0:00:31.1]} 33. Kxg2 {[%clk 0:00:30.8]} 33... f5 {[%clk 0:00:18]} 34. b4 {[%clk
0:00:16.1]} 34... Ng4 {[%clk 0:00:16.5]} 35. Kg3 {[%clk 0:00:15.1]} 35... Kf6
{[%clk 0:00:13.2]} 36. Re1 {[%clk 0:00:11.8]} 36... Ne5 {[%clk 0:00:10.7]} 37.
Bb7 {[%clk 0:00:10.1]} 37... Rg8+ {[%clk 0:00:06.4]} 38. Kh3 {[%clk 0:00:05.7]}
38... f4 {[%clk 0:00:06.8]} 39. Bxa6 {[%clk 0:00:04.5]} 39... Rg3+ {[%clk
0:00:06.3]} 40. Kh4 {[%clk 0:00:03.7]} 40... Nf3+ {[%clk 0:00:07.2]} 41. Kh5
{[%clk 0:00:02]} 41... Nxe1 {[%clk 0:00:07.1]} 42. Bxb5 {[%clk 0:00:01.8]} 42...
Nf3 {[%clk 0:00:07]} 43. a4 {[%clk 0:00:01.6]} 43... Ne5 {[%clk 0:00:06.9]} 44.
Bd7 {[%clk 0:00:01.3]} 44... f3 {[%clk 0:00:06.7]} 0-1

[Event "Late-Titled-Tuesday-Blitz-August-29-2023"]
[Site "Chess.com"]
[Date "2023.08.29"]
[Round "2"]
[White "ckgchess"]
[Black "jaskol95"]
[Result "1-0"]
[WhiteElo "2906"]
[BlackElo "2572"]
[TimeControl "180+1"]
[EndTime "14:18:42 PDT"]
[Termination "ckgchess won by checkmate"]

1. d4 {[%clk 0:03:00.9]} 1... d5 {[%clk 0:02:59.5]} 2. Nf3 {[%clk 0:03:01.3]}
2... Nc6 {[%clk 0:02:55.6]} 3. c4 {[%clk 0:02:55.6]} 3... e5 {[%clk 0:02:52.6]}
4. cxd5 {[%clk 0:02:39.7]} 4... Qxd5 {[%clk 0:02:47.9]} 5. Nc3 {[%clk
0:02:39.8]} 5... Bb4 {[%clk 0:02:47.9]} 6. e3 {[%clk 0:02:32.5]} 6... e4 {[%clk
0:02:44.8]} 7. Nd2 {[%clk 0:02:32.1]} 7... Bxc3 {[%clk 0:02:44.8]} 8. bxc3
{[%clk 0:02:33]} 8... Nf6 {[%clk 0:02:40.7]} 9. Ba3 {[%clk 0:02:30.2]} 9... Bg4
{[%clk 0:02:33.4]} 10. Qa4 {[%clk 0:02:25.2]} 10... a6 {[%clk 0:02:26]} 11. c4
{[%clk 0:02:02.3]} 11... Qd7 {[%clk 0:02:26]} 12. h3 {[%clk 0:01:57.5]} 12...
Bh5 {[%clk 0:02:24]} 13. Rb1 {[%clk 0:01:53.2]} 13... O-O-O {[%clk 0:02:03.2]}
14. Qb3 {[%clk 0:01:37.7]} 14... b6 {[%clk 0:01:40.4]} 15. Bb2 {[%clk
0:01:25.8]} 15... Rhe8 {[%clk 0:01:25.2]} 16. c5 {[%clk 0:01:17.7]} 16... b5
{[%clk 0:01:24.8]} 17. a4 {[%clk 0:01:18.2]} 17... Na7 {[%clk 0:01:06.7]} 18.
axb5 {[%clk 0:01:17.6]} 18... axb5 {[%clk 0:01:07.2]} 19. Ra1 {[%clk 0:01:16.6]}
19... c6 {[%clk 0:01:06.3]} 20. Bc3 {[%clk 0:01:10.2]} 20... Kb7 {[%clk
0:00:42]} 21. Ba5 {[%clk 0:01:10.1]} 21... Ra8 {[%clk 0:00:42]} 22. g4 {[%clk
0:01:10.7]} 22... Bg6 {[%clk 0:00:37.1]} 23. Be2 {[%clk 0:01:11]} 23... h5
{[%clk 0:00:37.1]} 24. Rg1 {[%clk 0:00:51]} 24... hxg4 {[%clk 0:00:36]} 25. hxg4
{[%clk 0:00:51.9]} 25... Nd5 {[%clk 0:00:36.1]} 26. Kd1 {[%clk 0:00:44.2]} 26...
Reb8 {[%clk 0:00:24.7]} 27. Kc2 {[%clk 0:00:43.9]} 27... Kc8 {[%clk 0:00:24.5]}
28. Rh1 {[%clk 0:00:44.1]} 28... Qe8 {[%clk 0:00:23.4]} 29. g5 {[%clk
0:00:43.1]} 29... Nf4 {[%clk 0:00:21.2]} 30. Bg4+ {[%clk 0:00:40.8]} 30... Kb7
{[%clk 0:00:20.6]} 31. Bb6 {[%clk 0:00:36.1]} 31... Nd5 {[%clk 0:00:20.2]} 32.
Bxa7 {[%clk 0:00:23.6]} 32... Rxa7 {[%clk 0:00:20.5]} 33. Nc4 {[%clk 0:00:24.5]}
33... Qe7 {[%clk 0:00:11.5]} 34. Rxa7+ {[%clk 0:00:16.5]} 34... Kxa7 {[%clk
0:00:12.4]} 35. Ra1+ {[%clk 0:00:16.9]} 35... Kb7 {[%clk 0:00:13]} 36. Nd6+
{[%clk 0:00:17.5]} 36... Kc7 {[%clk 0:00:13]} 37. Ra7+ {[%clk 0:00:17.6]} 37...
Kd8 {[%clk 0:00:13.6]} 38. Rxe7 {[%clk 0:00:17.6]} 38... Kxe7 {[%clk 0:00:14.5]}
39. Bf5 {[%clk 0:00:16.8]} 39... Rh8 {[%clk 0:00:08.6]} 40. Bxg6 {[%clk
0:00:15.3]} 40... fxg6 {[%clk 0:00:09.5]} 41. Nxe4 {[%clk 0:00:15.7]} 41... Rh2
{[%clk 0:00:09.8]} 42. Qa3 {[%clk 0:00:15.8]} 42... Ke6 {[%clk 0:00:09.8]} 43.
Kd2 {[%clk 0:00:14.7]} 43... Kf5 {[%clk 0:00:09]} 44. Qd3 {[%clk 0:00:13.6]}
44... Kg4 {[%clk 0:00:07.2]} 45. Qe2+ {[%clk 0:00:13]} 45... Kf5 {[%clk
0:00:07.5]} 46. Qf3+ {[%clk 0:00:13.2]} 46... Ke6 {[%clk 0:00:07.6]} 47. Qg4+
{[%clk 0:00:13.6]} 47... Ke7 {[%clk 0:00:07.7]} 48. Qg3 {[%clk 0:00:13.9]} 48...
Rh5 {[%clk 0:00:06.9]} 49. Qd6+ {[%clk 0:00:14.3]} 49... Kf7 {[%clk 0:00:07.4]}
50. Qxc6 {[%clk 0:00:13.1]} 50... Ne7 {[%clk 0:00:07.5]} 51. Qd7 {[%clk
0:00:13]} 51... Rh4 {[%clk 0:00:06.2]} 52. Nd6+ {[%clk 0:00:13.5]} 52... Kf8
{[%clk 0:00:05.7]} 53. Qe8# {[%clk 0:00:13.7]} 1-0

[Event "Late-Titled-Tuesday-Blitz-August-29-2023"]
[Site "Chess.com"]
[Date "2023.08.29"]
[Round "2"]
[White "Chessdreamer2020"]
[Black "Bauman_Guy"]
[Result "0-1"]
[WhiteElo "2542"]
[BlackElo "2849"]
[TimeControl "180+1"]
[EndTime "14:18:44 PDT"]
[Termination "Bauman_Guy won by resignation"]

1. e4 {[%clk 0:02:59.4]} 1... c5 {[%clk 0:02:59.9]} 2. Nf3 {[%clk 0:02:58.8]}
2... d6 {[%clk 0:03:00.5]} 3. d4 {[%clk 0:02:58.4]} 3... Nf6 {[%clk 0:03:00.8]}
4. Nc3 {[%clk 0:02:42.1]} 4... cxd4 {[%clk 0:03:00.9]} 5. Qxd4 {[%clk
0:02:38.8]} 5... Nc6 {[%clk 0:03:00.8]} 6. Bb5 {[%clk 0:02:37.7]} 6... Bd7
{[%clk 0:03:01.1]} 7. Bxc6 {[%clk 0:02:37.8]} 7... Bxc6 {[%clk 0:03:02]} 8. Bg5
{[%clk 0:02:37.7]} 8... e6 {[%clk 0:03:02.5]} 9. O-O-O {[%clk 0:02:35.7]} 9...
Be7 {[%clk 0:03:02.6]} 10. Qd3 {[%clk 0:02:33.7]} 10... Qa5 {[%clk 0:02:58.4]}
11. h4 {[%clk 0:02:31.3]} 11... h6 {[%clk 0:02:58.2]} 12. Bd2 {[%clk 0:02:30.8]}
12... Qa6 {[%clk 0:02:57.1]} 13. Qxa6 {[%clk 0:02:30.5]} 13... bxa6 {[%clk
0:02:58]} 14. Bf4 {[%clk 0:02:24.7]} 14... e5 {[%clk 0:02:50.5]} 15. Be3 {[%clk
0:02:15.8]} 15... Nxe4 {[%clk 0:02:49.6]} 16. Nxe4 {[%clk 0:02:15.3]} 16... Bxe4
{[%clk 0:02:50.5]} 17. Rhe1 {[%clk 0:02:09.7]} 17... f5 {[%clk 0:02:47.5]} 18.
h5 {[%clk 0:01:55.4]} 18... Kf7 {[%clk 0:02:44.5]} 19. Bd2 {[%clk 0:01:50]}
19... Rhc8 {[%clk 0:02:39.8]} 20. Bc3 {[%clk 0:01:49.7]} 20... Rc6 {[%clk
0:02:33.7]} 21. Kb1 {[%clk 0:01:47.1]} 21... Rac8 {[%clk 0:02:32.6]} 22. Rg1
{[%clk 0:01:46.3]} 22... Bf6 {[%clk 0:02:24.2]} 23. Nd2 {[%clk 0:01:40.4]} 23...
Bd5 {[%clk 0:02:15.6]} 24. Nf1 {[%clk 0:01:33.9]} 24... Be6 {[%clk 0:02:10]} 25.
Ne3 {[%clk 0:01:34.3]} 25... f4 {[%clk 0:02:01]} 26. Nd5 {[%clk 0:01:30.8]}
26... Bg4 {[%clk 0:01:45.7]} 27. f3 {[%clk 0:01:29.2]} 27... Bxh5 {[%clk
0:01:45.7]} 28. Nb4 {[%clk 0:01:28.5]} 28... Rb6 {[%clk 0:01:45.5]} 29. Nd5
{[%clk 0:01:28]} 29... Rbc6 {[%clk 0:01:43]} 30. Nb4 {[%clk 0:01:23.9]} 30...
Rxc3 {[%clk 0:01:43.1]} 31. bxc3 {[%clk 0:01:21.5]} 31... Ke6 {[%clk 0:01:43.2]}
32. Rd3 {[%clk 0:01:03.8]} 32... Bg6 {[%clk 0:01:41.7]} 33. Rd2 {[%clk
0:00:58.8]} 33... Rxc3 {[%clk 0:01:31.2]} 34. Rgd1 {[%clk 0:00:57.1]} 34... Be7
{[%clk 0:01:30.4]} 35. Nd5 {[%clk 0:00:46.8]} 35... Rc6 {[%clk 0:01:30]} 36. Kb2
{[%clk 0:00:32.4]} 36... Bd8 {[%clk 0:01:21.5]} 37. Re2 {[%clk 0:00:26.7]} 37...
Kf5 {[%clk 0:01:16.1]} 38. Kb3 {[%clk 0:00:24.5]} 38... Bf7 {[%clk 0:01:16]} 39.
c4 {[%clk 0:00:23]} 39... a5 {[%clk 0:01:16.2]} 40. a4 {[%clk 0:00:21.5]} 40...
g5 {[%clk 0:01:15.3]} 41. Rh1 {[%clk 0:00:17.2]} 41... h5 {[%clk 0:01:15.2]} 42.
Rd2 {[%clk 0:00:16.6]} 42... Rc5 {[%clk 0:01:11.5]} 43. Rc1 {[%clk 0:00:13.1]}
43... g4 {[%clk 0:01:09.7]} 44. Rh1 {[%clk 0:00:12.4]} 44... g3 {[%clk
0:01:07.2]} 45. Rc2 {[%clk 0:00:09.6]} 45... h4 {[%clk 0:01:04.9]} 46. Rd2
{[%clk 0:00:09.1]} 46... Be6 {[%clk 0:01:01.5]} 47. Rd3 {[%clk 0:00:09.3]} 47...
Kg5 {[%clk 0:01:00.5]} 48. Rd2 {[%clk 0:00:09.8]} 48... Rc8 {[%clk 0:00:56.9]}
49. Kc3 {[%clk 0:00:08.1]} 49... Rc5 {[%clk 0:00:53.5]} 50. Kb3 {[%clk
0:00:08.1]} 50... Bxd5 {[%clk 0:00:47.6]} 51. Rxd5 {[%clk 0:00:07.1]} 51... Rxd5
{[%clk 0:00:48]} 52. cxd5 {[%clk 0:00:08]} 52... e4 {[%clk 0:00:48.7]} 53. fxe4
{[%clk 0:00:08.1]} 53... f3 {[%clk 0:00:48.3]} 54. gxf3 {[%clk 0:00:07.9]} 54...
g2 {[%clk 0:00:48.6]} 55. Rg1 {[%clk 0:00:06.7]} 55... h3 {[%clk 0:00:49.1]} 56.
Kc2 {[%clk 0:00:03.9]} 56... Bb6 {[%clk 0:00:48.7]} 57. e5 {[%clk 0:00:02.4]}
57... Bxg1 {[%clk 0:00:47]} 58. e6 {[%clk 0:00:02.7]} 58... Kf6 {[%clk
0:00:47.1]} 59. Kd3 {[%clk 0:00:02.6]} 59... Bb6 {[%clk 0:00:46.8]} 0-1

[Event "Late-Titled-Tuesday-Blitz-August-29-2023"]
[Site "Chess.com"]
[Date "2023.08.29"]
[Round "2"]
[White "Bilan_Danila"]
[Black "nitpicker"]
[Result "1/2-1/2"]
[WhiteElo "2481"]
[BlackElo "2294"]
[TimeControl "180+1"]
[EndTime "14:18:47 PDT"]
[Termination "Game drawn - insufficient material"]

1. d4 {[%clk 0:03:00.9]} 1... Nf6 {[%clk 0:02:58.4]} 2. Nf3 {[%clk 0:03:01.5]}
2... b6 {[%clk 0:02:57.6]} 3. g3 {[%clk 0:03:01]} 3... d5 {[%clk 0:02:56.1]} 4.
Bg2 {[%clk 0:03:01.9]} 4... e6 {[%clk 0:02:56.1]} 5. O-O {[%clk 0:02:59.6]} 5...
Bb7 {[%clk 0:02:55.4]} 6. c4 {[%clk 0:03:00.2]} 6... c6 {[%clk 0:02:55.8]} 7.
Qc2 {[%clk 0:02:58.3]} 7... Be7 {[%clk 0:02:55.1]} 8. Nbd2 {[%clk 0:02:58.9]}
8... O-O {[%clk 0:02:54.1]} 9. e4 {[%clk 0:02:59.5]} 9... Nbd7 {[%clk
0:02:51.7]} 10. Rd1 {[%clk 0:02:55.7]} 10... Rc8 {[%clk 0:02:50.8]} 11. b3
{[%clk 0:02:54.8]} 11... c5 {[%clk 0:02:47.7]} 12. exd5 {[%clk 0:02:55.3]} 12...
exd5 {[%clk 0:02:47.1]} 13. Qf5 {[%clk 0:02:55.9]} 13... g6 {[%clk 0:02:30.4]}
14. Qh3 {[%clk 0:02:54.8]} 14... cxd4 {[%clk 0:02:26.9]} 15. Nxd4 {[%clk
0:02:52.5]} 15... Ne5 {[%clk 0:02:19.4]} 16. N2f3 {[%clk 0:02:29.1]} 16... Neg4
{[%clk 0:02:04.5]} 17. Bf4 {[%clk 0:01:38.2]} 17... Rc5 {[%clk 0:01:47.1]} 18.
Ne5 {[%clk 0:01:13.8]} 18... Bc8 {[%clk 0:01:44.7]} 19. Nxg4 {[%clk 0:00:57.3]}
19... Bxg4 {[%clk 0:01:43.2]} 20. Qh6 {[%clk 0:00:55.1]} 20... Bxd1 {[%clk
0:01:31.6]} 21. Rxd1 {[%clk 0:00:56]} 21... Ng4 {[%clk 0:01:13.4]} 22. Qh3
{[%clk 0:00:47.9]} 22... h5 {[%clk 0:01:10.4]} 23. Bxd5 {[%clk 0:00:36.6]} 23...
Rxd5 {[%clk 0:01:04.2]} 24. cxd5 {[%clk 0:00:36.6]} 24... Qxd5 {[%clk
0:01:04.2]} 25. Qg2 {[%clk 0:00:34.2]} 25... Rd8 {[%clk 0:01:02.3]} 26. h3
{[%clk 0:00:27.5]} 26... Qxg2+ {[%clk 0:00:52.4]} 27. Kxg2 {[%clk 0:00:28.4]}
27... Nf6 {[%clk 0:00:52]} 28. Kf3 {[%clk 0:00:21.8]} 28... Bc5 {[%clk 0:00:48]}
29. Be3 {[%clk 0:00:21.4]} 29... Rd6 {[%clk 0:00:30.1]} 30. Rd2 {[%clk
0:00:19.1]} 30... Nd5 {[%clk 0:00:23.1]} 31. Nc2 {[%clk 0:00:11.3]} 31... Nxe3
{[%clk 0:00:19.5]} 32. Rxd6 {[%clk 0:00:06.5]} 32... Bxd6 {[%clk 0:00:19.4]} 33.
Nxe3 {[%clk 0:00:05.7]} 33... Bc5 {[%clk 0:00:16.7]} 34. Ke4 {[%clk 0:00:05.6]}
34... Kf8 {[%clk 0:00:17.1]} 35. f4 {[%clk 0:00:05]} 35... Ke7 {[%clk
0:00:16.6]} 36. Nd5+ {[%clk 0:00:05.3]} 36... Kd6 {[%clk 0:00:17.2]} 37. g4
{[%clk 0:00:05.2]} 37... f5+ {[%clk 0:00:15.8]} 38. gxf5 {[%clk 0:00:04.9]}
38... gxf5+ {[%clk 0:00:16.2]} 39. Kxf5 {[%clk 0:00:05.8]} 39... Kxd5 {[%clk
0:00:16.8]} 40. Kg5 {[%clk 0:00:06.4]} 40... Ke4 {[%clk 0:00:16.5]} 41. f5
{[%clk 0:00:07]} 41... Ke5 {[%clk 0:00:11.3]} 42. f6 {[%clk 0:00:07.5]} 42...
Ke6 {[%clk 0:00:10.9]} 43. Kg6 {[%clk 0:00:08.4]} 43... Bf8 {[%clk 0:00:10.1]}
44. Kxh5 {[%clk 0:00:06.9]} 44... Kxf6 {[%clk 0:00:09.7]} 45. Kg4 {[%clk
0:00:07.8]} 45... Ba3 {[%clk 0:00:09.4]} 46. Kf4 {[%clk 0:00:07.5]} 46... Kg6
{[%clk 0:00:09.1]} 47. Ke4 {[%clk 0:00:08.4]} 47... Kh5 {[%clk 0:00:08.8]} 48.
Kd5 {[%clk 0:00:09]} 48... Kh4 {[%clk 0:00:09]} 49. Kc6 {[%clk 0:00:09.9]} 49...
Kxh3 {[%clk 0:00:08.8]} 50. Kb7 {[%clk 0:00:10.8]} 50... Bc5 {[%clk 0:00:08]}
51. Kxa7 {[%clk 0:00:10.7]} 51... Kg3 {[%clk 0:00:08.5]} 52. b4 {[%clk
0:00:10.4]} 52... Bd4 {[%clk 0:00:07.3]} 53. Ka6 {[%clk 0:00:10.3]} 53... Kf3
{[%clk 0:00:07.6]} 54. a4 {[%clk 0:00:10.5]} 54... Ke4 {[%clk 0:00:07.8]} 55. a5
{[%clk 0:00:10.8]} 55... bxa5 {[%clk 0:00:08.1]} 56. Kb5 {[%clk 0:00:10.1]}
56... axb4 {[%clk 0:00:07.1]} 57. Kxb4 {[%clk 0:00:10.5]} 1/2-1/2

[Event "Late-Titled-Tuesday-Blitz-August-29-2023"]
[Site "Chess.com"]
[Date "2023.08.29"]
[Round "2"]
[White "KNVB"]
[Black "LeninGuerra"]
[Result "1-0"]
[WhiteElo "2825"]
[BlackElo "2535"]
[TimeControl "180+1"]
[EndTime "14:18:48 PDT"]
[Termination "KNVB won by resignation"]

1. d4 {[%clk 0:03:00.9]} 1... Nf6 {[%clk 0:02:57.6]} 2. Bf4 {[%clk 0:03:00.9]}
2... c5 {[%clk 0:02:57.1]} 3. e3 {[%clk 0:03:00.4]} 3... e6 {[%clk 0:02:57]} 4.
c3 {[%clk 0:03:00.7]} 4... b6 {[%clk 0:02:56.5]} 5. Nf3 {[%clk 0:03:00.7]} 5...
Bb7 {[%clk 0:02:56.6]} 6. h3 {[%clk 0:03:00]} 6... d6 {[%clk 0:02:56.9]} 7. Nbd2
{[%clk 0:03:00]} 7... Nbd7 {[%clk 0:02:56.8]} 8. Bh2 {[%clk 0:02:59.1]} 8... Be7
{[%clk 0:02:54.1]} 9. Bd3 {[%clk 0:02:50.9]} 9... O-O {[%clk 0:02:52.8]} 10. O-O
{[%clk 0:02:50.1]} 10... cxd4 {[%clk 0:02:53.7]} 11. exd4 {[%clk 0:02:50.3]}
11... Re8 {[%clk 0:02:48.9]} 12. Re1 {[%clk 0:02:47.8]} 12... Nf8 {[%clk
0:02:48.7]} 13. a4 {[%clk 0:02:47.5]} 13... Ng6 {[%clk 0:02:39.8]} 14. a5 {[%clk
0:02:37.2]} 14... Nd5 {[%clk 0:02:37.5]} 15. Bb5 {[%clk 0:02:18.5]} 15... Rf8
{[%clk 0:02:36.7]} 16. a6 {[%clk 0:01:45.6]} 16... Bc8 {[%clk 0:02:29.3]} 17.
Bc6 {[%clk 0:01:36.3]} 17... Rb8 {[%clk 0:02:22.3]} 18. Bxd5 {[%clk 0:01:32.5]}
18... exd5 {[%clk 0:02:23.2]} 19. Qb3 {[%clk 0:01:33.1]} 19... Be6 {[%clk
0:02:23.1]} 20. Qb5 {[%clk 0:01:28.7]} 20... Qd7 {[%clk 0:01:54.9]} 21. Qxd7
{[%clk 0:01:07]} 21... Bxd7 {[%clk 0:01:55.8]} 22. Rxe7 {[%clk 0:01:07.3]} 22...
Nxe7 {[%clk 0:01:48.5]} 23. Bxd6 {[%clk 0:01:07.8]} 23... Rbe8 {[%clk
0:01:38.9]} 24. Re1 {[%clk 0:00:37.9]} 24... Nc8 {[%clk 0:01:18.5]} 25. Bxf8
{[%clk 0:00:35.6]} 25... Rxe1+ {[%clk 0:01:19]} 26. Nxe1 {[%clk 0:00:35.1]}
26... Kxf8 {[%clk 0:01:19.9]} 27. Nc2 {[%clk 0:00:34.3]} 27... Ke7 {[%clk
0:01:15.1]} 28. Nb4 {[%clk 0:00:31.6]} 28... Kd6 {[%clk 0:01:14.5]} 29. Nf1
{[%clk 0:00:22.5]} 29... Bb5 {[%clk 0:01:12.5]} 30. Ne3 {[%clk 0:00:22.9]} 30...
Ne7 {[%clk 0:01:12.5]} 31. h4 {[%clk 0:00:11.8]} 31... g6 {[%clk 0:01:12.5]} 32.
f3 {[%clk 0:00:11.2]} 32... f5 {[%clk 0:01:11.6]} 33. g3 {[%clk 0:00:10.9]}
33... Be2 {[%clk 0:01:06]} 34. Kf2 {[%clk 0:00:11]} 34... Bb5 {[%clk 0:01:06.6]}
35. g4 {[%clk 0:00:07.4]} 35... f4 {[%clk 0:00:33]} 36. Ng2 {[%clk 0:00:07.6]}
36... Nc6 {[%clk 0:00:33.1]} 37. Nxc6 {[%clk 0:00:06.9]} 37... Kxc6 {[%clk
0:00:34]} 38. Nxf4 {[%clk 0:00:07.2]} 38... Bxa6 {[%clk 0:00:34.6]} 39. h5
{[%clk 0:00:03.5]} 39... gxh5 {[%clk 0:00:25.8]} 40. Nxh5 {[%clk 0:00:03.1]}
40... Bd3 {[%clk 0:00:25.7]} 41. Ke3 {[%clk 0:00:02.8]} 41... Bb1 {[%clk
0:00:25.1]} 42. f4 {[%clk 0:00:02.8]} 42... Kd6 {[%clk 0:00:25.4]} 43. f5 {[%clk
0:00:02.8]} 43... a5 {[%clk 0:00:22.4]} 44. Kf4 {[%clk 0:00:03.1]} 44... b5
{[%clk 0:00:20.9]} 45. Nf6 {[%clk 0:00:02.6]} 45... h6 {[%clk 0:00:20.3]} 46.
Ng8 {[%clk 0:00:02.7]} 46... Bc2 {[%clk 0:00:14.5]} 47. Nxh6 {[%clk 0:00:02.9]}
47... a4 {[%clk 0:00:13.8]} 48. Nf7+ {[%clk 0:00:03]} 48... Ke7 {[%clk 0:00:13]}
49. Ne5 {[%clk 0:00:03.9]} 49... Kd6 {[%clk 0:00:13.4]} 50. g5 {[%clk
0:00:04.1]} 50... Ke7 {[%clk 0:00:13.6]} 51. g6 {[%clk 0:00:04]} 51... Kf6
{[%clk 0:00:13.7]} 52. Ng4+ {[%clk 0:00:04.5]} 52... Kg7 {[%clk 0:00:13.4]} 53.
Kg5 {[%clk 0:00:05.2]} 53... Bd3 {[%clk 0:00:12.3]} 54. f6+ {[%clk 0:00:05.3]}
54... Kf8 {[%clk 0:00:13.2]} 55. Ne5 {[%clk 0:00:05.1]} 55... Kg8 {[%clk
0:00:14.1]} 56. Nxd3 {[%clk 0:00:05.3]} 56... a3 {[%clk 0:00:14.1]} 57. bxa3
{[%clk 0:00:05.6]} 1-0